bitfinex/quotes_BTCUSD_20241009
["timestamp","ask_amount","ask_price","bid_price","bid_amount"]
[1728511019365,0.79252757,60938.0,60937.0,0.165243]
[1728511019366,0.51291882,60938.0,60937.0,0.165243]
[1728511019580,0.49891882,60938.0,60937.0,0.166243]
[1728511019815,0.60055267,60938.0,60937.0,0.166243]
[1728511020906,0.60055267,60938.0,60937.0,0.167877]
[1728511021990,0.58655267,60938.0,60937.0,0.166877]
[1728511022219,0.57251506,60938.0,60937.0,0.166877]
[1728511022426,0.52688121,60938.0,60937.0,0.167877]
[1728511022651,0.51288121,60938.0,60937.0,0.167877]
[1728511022869,0.49888121,60938.0,60937.0,0.166877]
[1728511023073,0.51288121,60938.0,60937.0,0.166877]
[1728511023290,0.54793864,60938.0,60937.0,0.166877]
[1728511023508,0.56193864,60938.0,60937.0,0.167877]
[1728511023727,0.57593864,60938.0,60937.0,0.167877]
[1728511025170,0.56193864,60938.0,60937.0,0.166877]
[1728511025401,0.57593864,60938.0,60937.0,0.167877]
[1728511026304,0.29655196,60938.0,60937.0,0.167877]
[1728511027218,0.21675196,60938.0,60937.0,0.167877]
[1728511027442,0.16769453,60938.0,60937.0,0.167877]
[1728511029250,0.04289453,60938.0,60937.0,0.167877]
[1728511044407,0.09192698,60938.0,60937.0,0.167877]
[1728511044617,0.14314926,60938.0,60937.0,0.167877]
[1728511045763,0.09411681,60938.0,60937.0,0.167877]
[1728511045977,0.04289453,60938.0,60937.0,0.167877]
[1728511046688,0.09417502,60938.0,60937.0,0.167877]
[1728511048920,0.14320747,60938.0,60937.0,0.167877]
[1728511050700,0.09417502,60938.0,60937.0,0.167877]
[1728511051135,0.14328589,60938.0,60937.0,0.167877]
[1728511051358,0.14328589,60938.0,60937.0,0.003774]
[1728511051577,0.2999237,60938.0,60937.0,0.167877]
[1728511051790,0.2999237,60938.0,60937.0,0.003774]
[1728511052004,0.22637502,60938.0,60937.0,0.003774]
[1728511052213,0.40770974,60938.0,60937.0,0.167877]
[1728511052421,0.50577465,60938.0,60937.0,0.003774]
[1728511053531,0.40770974,60938.0,60937.0,0.003774]
[1728511053743,0.685494,60938.0,60937.0,0.003774]
[1728511054607,0.56291286,60938.0,60937.0,0.003774]
[1728511056983,0.56291286,60938.0,60937.0,0.167877]
[1728511057385,0.40770974,60938.0,60937.0,0.167877]
[1728511058754,0.27550974,60938.0,60937.0,0.167877]
[1728511059880,0.42328251,60938.0,60937.0,0.167877]
[1728511062223,0.27550974,60938.0,60937.0,0.167877]
[1728511062965,0.42376815,60938.0,60937.0,0.167877]
[1728511064356,0.42377614,60938.0,60937.0,0.167877]
[1728511065571,0.09417502,60938.0,60937.0,0.167877]
[1728511066428,0.42378299,60938.0,60937.0,0.167877]
[1728511067540,0.27600779,60938.0,60937.0,0.167877]
[1728511068427,0.42378602,60938.0,60937.0,0.167877]
[1728511075771,0.09417502,60938.0,60937.0,0.167877]
[1728511076749,0.42381988,60938.0,60937.0,0.167877]
[1728511079607,0.42382312,60938.0,60937.0,0.167877]
[1728511082759,0.68194541,60938.0,60937.0,0.167877]
[1728511087086,0.55962312,60938.0,60937.0,0.167877]
[1728511087993,0.7415043,60938.0,60937.0,0.167877]
[1728511088225,0.55964939,60938.0,60937.0,0.167877]
[1728511089789,0.41184442,60938.0,60937.0,0.167877]
[1728511092994,0.41186542,60938.0,60937.0,0.167877]
[1728511095324,0.41186579,60938.0,60937.0,0.167877]
[1728511097776,0.27606665,60938.0,60937.0,0.167877]
[1728511098890,0.27606597,60938.0,60937.0,0.167877]
[1728511101835,0.42388677,60938.0,60937.0,0.167877]
[1728511102549,0.39588677,60938.0,60937.0,0.166877]
[1728511102780,0.26205581,60938.0,60937.0,0.166877]
[1728511102997,0.27605581,60938.0,60937.0,0.166877]
[1728511103221,0.26205581,60938.0,60937.0,0.166877]
[1728511103455,0.27605581,60938.0,60937.0,0.166877]
[1728511103688,0.26205581,60938.0,60937.0,0.166877]
[1728511104192,0.26005581,60938.0,60937.0,0.166877]
[1728511104414,0.27205581,60938.0,60937.0,0.166877]
[1728511107524,0.27201677,60938.0,60937.0,0.166877]
[1728511108235,0.22073628,60938.0,60937.0,0.166877]
[1728511112570,0.2206988,60938.0,60937.0,0.166877]
[1728511113527,0.22069079,60938.0,60937.0,0.166877]
[1728511114437,0.16201204,60938.0,60937.0,0.166877]
[1728511114668,0.3438083,60938.0,60937.0,0.166877]
[1728511117054,0.51810898,60938.0,60937.0,0.166877]
[1728511117289,0.34557335,60938.0,60937.0,0.166877]
[1728511122286,0.34557178,60938.0,60937.0,0.166877]
[1728511124170,0.22067178,60938.0,60937.0,0.166877]
[1728511128621,0.11275589,60938.0,60937.0,0.166877]
[1728511129050,0.22066862,60938.0,60937.0,0.166877]
[1728511129927,0.16199989,60938.0,60937.0,0.166877]
[1728511130136,0.34377398,60938.0,60937.0,0.166877]
[1728511130372,0.22066862,60938.0,60937.0,0.166877]
[1728511130620,0.27196973,60938.0,60937.0,0.166877]
[1728511132853,0.27196973,60938.0,60937.0,0.294677]
[1728511134368,0.27196973,60938.0,60937.0,0.166877]
[1728511136879,0.27198096,60938.0,60937.0,0.166877]
[1728511140170,0.27198096,60938.0,60937.0,0.16845492]
[1728511140402,0.27198096,60938.0,60937.0,0.37905492]
[1728511140653,0.27198096,60938.0,60937.0,0.68521485]
[1728511140863,0.34381925,60938.0,60937.0,0.68521485]
[1728511141088,0.34381925,60938.0,60937.0,0.56289256]
[1728511142803,0.34381925,60938.0,60937.0,0.68521485]
[1728511144440,0.22069507,60938.0,60937.0,0.68521485]
[1728511144675,0.03889453,60938.0,60937.0,0.68521485]
[1728511144907,0.22071765,60938.0,60937.0,0.68521485]
[1728511145628,0.22072423,60938.0,60937.0,0.68521485]
[1728511147568,0.22072423,60938.0,60937.0,0.56289256]
[1728511148591,0.22072423,60938.0,60937.0,0.571094]
[1728511148969,0.20872423,60938.0,60937.0,0.571094]
[1728511149388,0.21272423,60938.0,60937.0,0.571094]
[1728511149619,0.21272423,60938.0,60937.0,0.442094]
[1728511150045,0.21272423,60938.0,60937.0,0.569894]
[1728511150250,0.20072423,60938.0,60937.0,0.569894]
[1728511150496,0.20072423,60938.0,60937.0,0.571894]
[1728511150655,0.20072423,60938.0,60937.0,0.569894]
[1728511151065,0.20072423,60938.0,60937.0,0.571894]
[1728511151368,0.19672423,60938.0,60937.0,0.569894]
[1728511151574,0.19672423,60938.0,60937.0,0.575894]
[1728511151780,0.19672423,60938.0,60937.0,0.785544]
[1728511151781,0.31987793,60938.0,60937.0,0.785544]
[1728511151994,0.18730561,60938.0,60937.0,0.782544]
[1728511152180,0.08878488,60938.0,60937.0,0.26425636]
[1728511152405,0.08878488,60938.0,60937.0,0.17445492]
[1728511152406,0.11341526,60938.0,60937.0,0.17445492]
[1728511152622,0.01489453,60938.0,60937.0,0.17445492]
[1728511152848,0.19671245,60938.0,60937.0,0.17145492]
[1728511153008,0.19671245,60938.0,60937.0,0.17445492]
[1728511153416,0.31986615,60938.0,60937.0,0.17445492]
[1728511153860,0.31986615,60938.0,60937.0,0.17145492]
[1728511154295,0.31986615,60938.0,60937.0,0.17345492]
[1728511154510,0.01489453,60938.0,60937.0,0.166877]
[1728511154715,0.13803037,60938.0,60937.0,0.167877]
[1728511154923,0.13803037,60938.0,60937.0,0.168877]
[1728511154924,0.18181776,60938.0,60937.0,0.168877]
[1728511155134,0.19678552,60938.0,60937.0,0.168877]
[1728511155580,0.19678552,60938.0,60937.0,0.167877]
[1728511155820,0.19778552,60938.0,60937.0,0.166877]
[1728511156053,0.25287567,60938.0,60937.0,0.002774]
[1728511156277,0.434181,60938.0,60937.0,0.002774]
[1728511156741,0.37909085,60938.0,60937.0,0.002774]
[1728511157176,0.38009085,60938.0,60937.0,0.002774]
[1728511157703,0.93309249,60938.0,60937.0,0.002774]
[1728511157951,0.93209249,60938.0,60937.0,0.002774]
[1728511158177,0.94409249,60938.0,60937.0,0.002774]
[1728511158416,0.97555818,60938.0,60937.0,0.002774]
[1728511158643,1.23009396,60938.0,60937.0,0.002774]
[1728511159103,0.97555439,60938.0,60937.0,0.002774]
[1728511161439,1.12327727,60938.0,60937.0,0.002774]
[1728511162165,0.92424906,60938.0,60937.0,0.002774]
[1728511163132,1.04733782,60938.0,60937.0,0.002774]
[1728511163361,0.88453121,60938.0,60937.0,0.002774]
[1728511163598,0.88453121,60938.0,60937.0,0.00272629]
[1728511166689,0.88653121,60938.0,60937.0,0.00272629]
[1728511167627,0.81472506,60938.0,60937.0,0.00272629]
[1728511167853,0.97553167,60938.0,60937.0,0.00272629]
[1728511168736,0.7937177,60938.0,60937.0,0.00272629]
[1728511174166,0.46681009,60938.0,60937.0,0.00272629]
[1728511174417,0.33622748,60938.0,60937.0,0.00272629]
[1728511177621,0.2018054,60938.0,60937.0,0.16682929]
[1728511177846,0.20522748,60938.0,60937.0,0.16682929]
[1728511178324,0.2018054,60938.0,60937.0,0.16682929]
[1728511181002,0.20522748,60938.0,60937.0,0.16682929]
[1728511183263,0.20522748,60938.0,60937.0,0.00272629]
[1728511186503,0.20604548,60938.0,60937.0,0.00272629]
[1728511188115,0.2026234,60938.0,60937.0,0.00272629]
[1728511188541,0.2026234,60938.0,60937.0,0.16682929]
[1728511189392,0.2026234,60938.0,60937.0,0.00272629]
[1728511189821,0.2026234,60938.0,60937.0,0.16682929]
[1728511190153,0.2026234,60938.0,60937.0,0.00272629]
[1728511190449,0.20604548,60938.0,60937.0,0.00272629]
[1728511197628,0.2026234,60938.0,60937.0,0.00272629]
[1728511197843,0.20604548,60938.0,60937.0,0.00272629]
[1728511198686,0.82962639,60938.0,60937.0,0.00272629]
[1728511200506,0.82962639,60938.0,60919.0,0.37112244]
[1728511200507,0.00542208,60930.0,60920.0,0.001636]
[1728511200738,0.51769137,60921.0,60920.0,0.001636]
[1728511200956,0.29257108,60920.0,60919.0,0.001636]
[1728511201167,0.49537108,60920.0,60919.0,0.001636]
[1728511201386,0.49537108,60920.0,60910.0,0.24778644]
[1728511201387,0.19259508,60911.0,60910.0,0.24778644]
[1728511201596,0.52141737,60911.0,60910.0,0.24778644]
[1728511201805,0.32838,60905.0,60898.0,0.001636]
[1728511202020,0.28652629,60900.0,60898.0,0.001636]
[1728511202221,0.16083764,60899.0,60898.0,0.001636]
[1728511202651,0.32838,60905.0,60898.0,0.001636]
[1728511202652,0.1,60910.0,60907.0,0.164184]
[1728511202870,0.16083764,60908.0,60907.0,0.164184]
[1728511203333,0.16425972,60908.0,60907.0,0.164184]
[1728511203551,0.28658201,60908.0,60906.0,0.164185]
[1728511203752,0.16083764,60907.0,60906.0,0.164185]
[1728511203966,0.16083764,60907.0,60903.0,0.164194]
[1728511204196,0.12232229,60905.0,60900.0,0.0767]
[1728511204403,0.12232229,60902.0,60901.0,0.164199]
[1728511204611,0.12232229,60902.0,60896.0,0.330058]
[1728511204612,0.16083764,60902.0,60898.0,0.165843]
[1728511204825,0.28652829,60899.0,60898.0,0.001636]
[1728511205038,0.44736593,60899.0,60898.0,0.001636]
[1728511206149,0.46136593,60899.0,60898.0,0.001636]
[1728511206378,0.47536593,60899.0,60898.0,0.001636]
[1728511206893,0.60184913,60899.0,60898.0,0.001636]
[1728511207117,0.59984913,60899.0,60898.0,0.001636]
[1728511207339,0.00542208,60897.0,60896.0,0.001634]
[1728511207561,0.56967072,60897.0,60896.0,0.001634]
[1728511207791,0.16964708,60892.0,60891.0,0.001634]
[1728511208013,0.47580701,60892.0,60891.0,0.001634]
[1728511208245,0.32848472,60892.0,60891.0,0.001634]
[1728511208456,0.28315993,60892.0,60891.0,0.001634]
[1728511208685,0.014,60897.0,60891.0,0.001634]
[1728511208910,0.17483764,60897.0,60896.0,0.164214]
[1728511209136,0.16083764,60897.0,60896.0,0.164214]
[1728511209355,0.00342208,60912.0,60893.0,0.00157792]
[1728511209562,0.24778644,60903.0,60902.0,0.164198]
[1728511209769,0.40862408,60903.0,60902.0,0.164198]
[1728511209976,0.16083764,60903.0,60902.0,0.164198]
[1728511210202,0.16083764,60903.0,60901.0,0.1642]
[1728511210424,0.16083764,60902.0,60901.0,0.1642]
[1728511210645,0.21203944,60902.0,60898.0,0.001636]
[1728511210866,0.18663082,60900.0,60899.0,0.164206]
[1728511211087,0.0512018,60900.0,60899.0,0.164206]
[1728511211291,0.18663082,60905.0,60901.0,0.328399]
[1728511211730,0.34746846,60905.0,60901.0,0.328399]
[1728511211956,0.16083764,60904.0,60901.0,0.1642]
[1728511212159,0.16083764,60904.0,60898.0,0.001636]
[1728511212160,0.16083764,60904.0,60899.0,0.32841]
[1728511212360,0.18663082,60901.0,60900.0,0.164203]
[1728511212588,0.16762808,60899.0,60898.0,0.001636]
[1728511212821,0.33046572,60899.0,60898.0,0.001636]
[1728511213061,0.38153396,60899.0,60898.0,0.001636]
[1728511213286,0.33046572,60899.0,60898.0,0.001636]
[1728511213499,0.38146784,60899.0,60898.0,0.001636]
[1728511213720,0.45643007,60899.0,60898.0,0.001636]
[1728511214848,0.65706089,60899.0,60898.0,0.001636]
[1728511215073,0.67106089,60899.0,60898.0,0.001636]
[1728511215291,0.65706089,60899.0,60898.0,0.001636]
[1728511215990,0.67106089,60899.0,60898.0,0.001636]
[1728511217045,0.67106089,60899.0,60891.0,0.001634]
[1728511217046,0.16764708,60892.0,60891.0,0.001634]
[1728511217249,0.51511554,60892.0,60891.0,0.001634]
[1728511217659,0.52913536,60892.0,60891.0,0.001634]
[1728511218272,0.54313536,60892.0,60891.0,0.001634]
[1728511218686,0.55713536,60892.0,60891.0,0.001634]
[1728511219096,0.7115802,60892.0,60891.0,0.001634]
[1728511219704,0.55713536,60892.0,60891.0,0.001634]
[1728511220333,0.37050454,60892.0,60891.0,0.001634]
[1728511220546,0.38948828,60892.0,60891.0,0.001634]
[1728511221590,0.20285746,60892.0,60891.0,0.001634]
[1728511221803,0.38948828,60892.0,60891.0,0.001634]
[1728511222014,0.48640076,60892.0,60891.0,0.001634]
[1728511222229,0.38948828,60892.0,60891.0,0.165861]
[1728511222643,0.20285746,60892.0,60891.0,0.165861]
[1728511223492,0.2017243,60892.0,60891.0,0.165861]
[1728511227357,0.2017243,60892.0,60891.0,0.001634]
[1728511228016,0.25732382,60892.0,60891.0,0.001634]
[1728511228434,0.2017243,60892.0,60891.0,0.165861]
[1728511229092,0.2017243,60892.0,60891.0,0.001634]
[1728511231021,0.38835512,60892.0,60891.0,0.001634]
[1728511232055,0.55258012,60892.0,60891.0,0.001634]
[1728511232425,0.55458012,60892.0,60891.0,0.001634]
[1728511232797,0.69721972,60892.0,60891.0,0.001634]
[1728511233249,0.69921972,60892.0,60891.0,0.001634]
[1728511233465,0.75010052,60892.0,60891.0,0.001634]
[1728511233688,0.166233,60889.0,60888.0,0.001634]
[1728511233903,0.5017742,60889.0,60888.0,0.001634]
[1728511234119,0.73928582,60889.0,60888.0,0.001634]
[1728511234358,0.7427079,60889.0,60888.0,0.001634]
[1728511235005,0.60590129,60889.0,60888.0,0.001634]
[1728511241798,0.60590129,60889.0,60887.0,0.001634]
[1728511241799,0.002,60883.0,60880.0,0.001634]
[1728511242001,0.38837608,60881.0,60880.0,0.001634]
[1728511242203,0.80972534,60881.0,60880.0,0.001634]
[1728511242769,0.96853195,60881.0,60880.0,0.001634]
[1728511243005,0.66320113,60881.0,60880.0,0.001634]
[1728511243236,0.68902534,60881.0,60880.0,0.001634]
[1728511244154,0.68902534,60881.0,60876.0,0.00079003]
[1728511244155,0.164265,60877.0,60876.0,0.00079003]
[1728511244378,0.37598344,60877.0,60876.0,0.00079003]
[1728511244815,0.56261426,60877.0,60876.0,0.00079003]
[1728511245276,0.56261426,60877.0,60876.0,0.00179003]
[1728511245709,0.4012918,60877.0,60876.0,0.00179003]
[1728511246600,0.4012918,60877.0,60876.0,0.16605803]
[1728511246865,0.4012918,60877.0,60876.0,0.24413595]
[1728511246866,0.06782334,60877.0,60876.0,0.24413595]
[1728511247095,0.06782334,60877.0,60876.0,0.36833595]
[1728511247316,0.0648808,60877.0,60876.0,0.36833595]
[1728511249391,0.05120583,60884.0,60883.0,0.241749]
[1728511249618,0.00302222,60884.0,60883.0,0.241749]
[1728511249859,0.05422805,60884.0,60883.0,0.241749]
[1728511250418,0.05120583,60884.0,60883.0,0.241749]
[1728511250630,0.05120583,60884.0,60883.0,0.0775]
[1728511250857,0.004,60884.0,60883.0,0.241749]
[1728511251327,0.05520561,60884.0,60883.0,0.241749]
[1728511253416,0.05822454,60884.0,60883.0,0.241749]
[1728511254572,0.06900689,60884.0,60883.0,0.241749]
[1728511255015,0.08436626,60884.0,60883.0,0.241749]
[1728511255439,0.08436626,60884.0,60883.0,0.164249]
[1728511256301,0.1824836,60884.0,60883.0,0.164249]
[1728511256515,0.41260916,60884.0,60882.0,0.164251]
[1728511256790,0.24803092,60883.0,60882.0,0.164251]
[1728511257007,0.3309917,60883.0,60882.0,0.164251]
[1728511257222,0.3448028,60883.0,60882.0,0.164251]
[1728511257483,0.3429251,60883.0,60882.0,0.164251]
[1728511257898,0.34295413,60883.0,60882.0,0.164251]
[1728511258359,0.46587362,60883.0,60882.0,0.164251]
[1728511258577,0.37243146,60883.0,60880.0,0.16583392]
[1728511258789,0.33105855,60882.0,60881.0,0.164253]
[1728511259013,0.23270392,60882.0,60881.0,0.164253]
[1728511259227,0.23270392,60882.0,60880.0,0.00157792]
[1728511259438,0.12591949,60883.0,60881.0,0.164254]
[1728511259659,0.35567077,60882.0,60880.0,0.16583292]
[1728511259880,0.27989941,60881.0,60880.0,0.00157792]
[1728511260077,0.33111467,60881.0,60880.0,0.16583292]
[1728511260339,0.73973875,60881.0,60880.0,0.00157792]
[1728511260586,0.002,60880.0,60876.0,0.00079003]
[1728511260765,0.12295227,60878.0,60876.0,0.00079003]
[1728511260979,0.35570649,60877.0,60876.0,0.00079003]
[1728511261210,0.54867496,60877.0,60876.0,0.00079003]
[1728511261435,0.55164575,60877.0,60876.0,0.00079003]
[1728511261668,0.52294517,60877.0,60876.0,0.00079003]
[1728511261911,0.35868017,60877.0,60876.0,0.00079003]
[1728511262665,0.35868017,60877.0,60876.0,0.16505803]
[1728511262911,0.37268017,60877.0,60876.0,0.16505803]
[1728511263667,0.24972501,60877.0,60876.0,0.00079003]
[1728511263930,0.31086395,60877.0,60876.0,0.00079003]
[1728511264188,0.31086395,60877.0,60876.0,0.16505803]
[1728511264446,0.03097079,60877.0,60876.0,0.16505803]
[1728511264662,0.03097079,60877.0,60876.0,0.00079003]
[1728511264892,0.03097079,60877.0,60876.0,0.24155803]
[1728511265142,0.08014446,60877.0,60876.0,0.24313595]
[1728511265403,0.03097079,60877.0,60876.0,0.24313595]
[1728511265657,0.01697079,60877.0,60876.0,0.24313595]
[1728511266150,0.03097079,60877.0,60876.0,0.24313595]
[1728511266643,0.00297079,60877.0,60876.0,0.24313595]
[1728511267107,0.04917367,60879.0,60878.0,0.16583992]
[1728511268516,0.04917367,60880.0,60879.0,0.16583792]
[1728511268739,0.04917367,60881.0,60880.0,0.16583492]
[1728511269180,0.05993982,60881.0,60880.0,0.16583492]
[1728511270509,0.06291391,60881.0,60880.0,0.16583492]
[1728511271385,0.01374024,60881.0,60880.0,0.16583492]
[1728511271605,0.02774024,60881.0,60880.0,0.16583492]
[1728511272261,0.04174024,60881.0,60880.0,0.16583492]
[1728511273142,0.11550245,60881.0,60880.0,0.16583492]
[1728511274084,0.04174024,60881.0,60880.0,0.16583492]
[1728511274303,0.10178471,60881.0,60880.0,0.16390534]
[1728511274521,0.11550272,60881.0,60880.0,0.16390534]
[1728511275403,0.11550809,60881.0,60880.0,0.16390534]
[1728511276554,0.04171801,60881.0,60880.0,0.16390534]
[1728511276779,0.11551409,60881.0,60880.0,0.16390534]
[1728511277217,0.04171801,60881.0,60880.0,0.16390534]
[1728511277436,0.11551953,60881.0,60880.0,0.16390534]
[1728511277655,0.10180152,60881.0,60880.0,0.16390534]
[1728511277874,0.04171801,60881.0,60880.0,0.16390534]
[1728511278094,0.028,60881.0,60880.0,0.16390534]
[1728511278524,0.04171801,60881.0,60880.0,0.16390534]
[1728511278751,0.1018038,60881.0,60880.0,0.16390534]
[1728511279185,0.041718,60881.0,60880.0,0.16390534]
[1728511279412,0.11552143,60881.0,60880.0,0.16390534]
[1728511279639,0.10180282,60881.0,60880.0,0.16390534]
[1728511279856,0.11552712,60881.0,60880.0,0.16390534]
[1728511281420,0.16764868,60881.0,60880.0,0.16390534]
[1728511288308,0.09384586,60881.0,60880.0,0.16390534]
[1728511289352,0.37390506,60881.0,60880.0,0.16390534]
[1728511289790,0.37397379,60881.0,60880.0,0.16390534]
[1728511290193,0.27553488,60881.0,60880.0,0.16390534]
[1728511291378,0.72681941,60881.0,60878.0,0.00157792]
[1728511291591,0.164263,60878.0,60876.0,0.00079003]
[1728511291811,0.35552847,60877.0,60876.0,0.00079003]
[1728511292008,0.51699968,60877.0,60876.0,0.00079003]
[1728511292304,0.6943185,60877.0,60876.0,0.00079003]
[1728511293254,1.06195614,60877.0,60876.0,0.00079003]
[1728511293732,1.22807181,60877.0,60876.0,0.00079003]
[1728511293963,1.48243644,60877.0,60876.0,0.00079003]
[1728511294448,1.33559502,60877.0,60876.0,0.00079003]
[1728511294687,1.14036292,60877.0,60876.0,0.00079003]
[1728511295394,1.39488753,60877.0,60876.0,0.00079003]
[1728511295638,1.40888753,60877.0,60876.0,0.00079003]
[1728511296105,1.57852976,60877.0,60876.0,0.00079003]
[1728511296110,1.41230961,60877.0,60876.0,0.00079003]
[1728511296343,1.32394196,60877.0,60876.0,0.00079003]
[1728511296595,1.157785,60877.0,60876.0,0.00079003]
[1728511296819,1.41230961,60877.0,60876.0,0.00079003]
[1728511297064,1.157785,60877.0,60876.0,0.00079003]
[1728511297291,1.157785,60877.0,60864.0,0.24778644]
[1728511297292,0.002,60872.0,60864.0,0.24778644]
[1728511297537,0.12305385,60865.0,60864.0,0.24778644]
[1728511297795,0.17435741,60865.0,60863.0,0.16587992]
[1728511298040,0.18180329,60864.0,60863.0,0.16587992]
[1728511298298,0.28024645,60864.0,60863.0,0.16587992]
[1728511298754,0.00293406,60864.0,60863.0,0.16588092]
[1728511299218,0.05214138,60864.0,60863.0,0.16588092]
[1728511299497,0.11584403,60864.0,60863.0,0.16588092]
[1728511299727,0.12655164,60864.0,60863.0,0.00157792]
[1728511299950,0.08745688,60864.0,60863.0,0.16588092]
[1728511300184,0.01364167,60864.0,60863.0,0.16588092]
[1728511300413,0.09044735,60864.0,60863.0,0.16588092]
[1728511300640,0.55946279,60864.0,60857.0,0.00157792]
[1728511300867,0.04919695,60861.0,60859.0,0.164313]
[1728511301120,0.23602535,60860.0,60859.0,0.164313]
[1728511301357,0.23602535,60860.0,60855.0,0.00157792]
[1728511301358,0.1868284,60860.0,60855.0,0.00157792]
[1728511301591,0.1868284,60860.0,60854.0,0.328653]
[1728511301592,0.0491913,60858.0,60857.0,0.00157792]
[1728511301820,0.16348658,60859.0,60857.0,0.00157792]
[1728511301821,0.18002098,60859.0,60857.0,0.00157792]
[1728511302331,0.18002098,60859.0,60854.0,0.328653]
[1728511302332,0.16083764,60858.0,60850.0,0.00753236]
[1728511302545,0.23600897,60855.0,60853.0,0.16433]
[1728511302788,0.04918057,60854.0,60853.0,0.16433]
[1728511303479,0.16083764,60855.0,60853.0,0.16433]
[1728511303711,0.37434321,60855.0,60852.0,0.164332]
[1728511303944,0.15045164,60854.0,60852.0,0.164332]
[1728511304179,0.16345164,60854.0,60853.0,0.16433]
[1728511304419,0.026,60854.0,60852.0,0.164332]
[1728511304664,0.21001821,60855.0,60853.0,0.16433]
[1728511304945,0.22401821,60855.0,60853.0,0.16433]
[1728511305186,0.23801821,60855.0,60853.0,0.16433]
[1728511305433,0.24123291,60855.0,60853.0,0.16433]
[1728511305687,0.24123291,60855.0,60854.0,0.164327]
[1728511305962,0.17483764,60855.0,60851.0,0.330306]
[1728511306221,0.16083764,60855.0,60853.0,0.164329]
[1728511306432,0.014,60854.0,60853.0,0.164329]
[1728511306934,0.16083764,60855.0,60853.0,0.164329]
[1728511307208,0.04566452,60854.0,60853.0,0.164329]
[1728511307886,0.05966452,60854.0,60853.0,0.164329]
[1728511308116,0.07366452,60854.0,60853.0,0.164329]
[1728511308582,0.028,60854.0,60853.0,0.164329]
[1728511308839,0.028,60854.0,60853.0,0.240729]
[1728511309309,0.03846829,60854.0,60853.0,0.24230692]
[1728511310766,0.02446829,60854.0,60853.0,0.24230692]
[1728511310964,0.02946829,60854.0,60853.0,0.24230692]
[1728511311206,0.019,60854.0,60853.0,0.24230692]
[1728511311444,0.03231507,60854.0,60853.0,0.24230692]
[1728511313547,0.019,60854.0,60853.0,0.24230692]
[1728511313766,0.005,60854.0,60853.0,0.24230692]
[1728511314201,0.01,60854.0,60853.0,0.24230692]
[1728511314558,0.01,60854.0,60853.0,0.24559316]
[1728511315629,0.01,60854.0,60853.0,0.24230692]
[1728511317806,0.01,60854.0,60853.0,0.24394292]
[1728511318646,0.01,60854.0,60853.0,0.16754292]
[1728511319038,0.02338582,60854.0,60853.0,0.16754292]
[1728511319239,0.01288471,60854.0,60853.0,0.16754292]
[1728511323744,0.05894182,60854.0,60853.0,0.16754292]
[1728511324448,0.01288471,60854.0,60853.0,0.16754292]
[1728511325901,0.01288471,60854.0,60853.0,0.165965]
[1728511326381,0.01288471,60854.0,60853.0,0.16754292]
[1728511329768,0.0233694,60854.0,60853.0,0.16754292]
[1728511332086,0.0233694,60854.0,60853.0,0.25129666]
[1728511332301,0.01,60854.0,60853.0,0.25129666]
[1728511332510,0.01,60854.0,60853.0,0.37069666]
[1728511332723,0.01,60854.0,60853.0,0.36744292]
[1728511332936,0.005,60854.0,60853.0,0.36744292]
[1728511333164,0.005,60854.0,60853.0,0.36844292]
[1728511333374,0.005,60854.0,60853.0,0.36744292]
[1728511333592,0.24778644,60863.0,60862.0,0.164306]
[1728511334029,0.00288801,60863.0,60862.0,0.16588392]
[1728511334483,0.24778644,60870.0,60869.0,0.164287]
[1728511334699,0.0009946,60875.0,60874.0,0.164273]
[1728511334921,0.0009946,60875.0,60868.0,0.33015392]
[1728511334922,0.05130922,60875.0,60870.0,0.328568]
[1728511335146,0.05130922,60875.0,60874.0,0.164273]
[1728511335361,0.21617997,60875.0,60874.0,0.164273]
[1728511335610,0.0761,60874.0,60866.0,0.00157792]
[1728511335825,0.12265938,60867.0,60865.0,0.164297]
[1728511336480,0.12265938,60867.0,60860.0,0.328619]
[1728511336669,0.12265938,60864.0,60863.0,0.16588092]
[1728511336843,0.12265938,60867.0,60865.0,0.164298]
[1728511337258,0.13665938,60867.0,60865.0,0.165298]
[1728511337655,0.12265938,60867.0,60865.0,0.164298]
[1728511337902,0.24778644,60870.0,60865.0,0.328595]
[1728511337903,0.12265938,60870.0,60865.0,0.328595]
[1728511338048,0.2121178,60869.0,60868.0,0.164289]
[1728511338804,0.2121178,60869.0,60863.0,0.00157792]
[1728511339003,0.16083764,60869.0,60868.0,0.164289]
[1728511339233,0.27197718,60869.0,60868.0,0.164289]
[1728511340193,0.2121127,60869.0,60868.0,0.164289]
[1728511340398,0.06527506,60869.0,60868.0,0.165289]
[1728511341667,0.07927506,60869.0,60868.0,0.165289]
[1728511342092,0.42693967,60869.0,60868.0,0.001]
[1728511342268,0.79132667,60869.0,60868.0,0.001]
[1728511342484,0.96117044,60869.0,60868.0,0.001]
[1728511342703,0.96459252,60869.0,60868.0,0.001]
[1728511344223,0.95059252,60869.0,60868.0,0.001]
[1728511344651,0.164313,60860.0,60854.0,0.164326]
[1728511344808,0.18682697,60858.0,60854.0,0.164326]
[1728511345003,0.2121127,60857.0,60853.0,0.001636]
[1728511345210,0.05127506,60856.0,60855.0,0.164324]
[1728511345420,0.41780271,60856.0,60853.0,0.001636]
[1728511345624,0.05127506,60855.0,60854.0,0.164326]
[1728511345821,0.05127506,60855.0,60853.0,0.001636]
[1728511345822,0.2121127,60855.0,60853.0,0.001636]
[1728511346021,0.05127506,60854.0,60853.0,0.001636]
[1728511346220,0.17142224,60855.0,60854.0,0.164327]
[1728511346426,0.16083764,60855.0,60853.0,0.165965]
[1728511346703,0.17142224,60855.0,60854.0,0.164327]
[1728511347613,0.24318856,60855.0,60854.0,0.164327]
[1728511347830,0.25718856,60855.0,60854.0,0.164327]
[1728511348274,0.0245846,60855.0,60854.0,0.24720492]
[1728511348483,0.0385846,60855.0,60854.0,0.24720492]
[1728511348666,0.028,60855.0,60854.0,0.24720492]
[1728511349075,0.24778644,60869.0,60866.0,0.164295]
[1728511349224,0.16183654,60867.0,60866.0,0.164295]
[1728511349429,0.22553024,60867.0,60866.0,0.164295]
[1728511350482,0.23953024,60867.0,60866.0,0.164295]
[1728511351131,0.29859386,60867.0,60866.0,0.164295]
[1728511351331,0.31259386,60867.0,60866.0,0.164295]
[1728511352097,0.23953024,60867.0,60866.0,0.164295]
[1728511352305,0.22553024,60867.0,60866.0,0.164295]
[1728511352731,0.23953024,60867.0,60866.0,0.164295]
[1728511352930,0.25353024,60867.0,60866.0,0.164295]